[Event "*** Titled Tuesday Blitz"]
[Site "Chess.com"]
[Date "2020.04.14"]
[Round "9"]
[White "Salem-AR"]
[Black "lachesisQ"]
[Result "1/2-1/2"]
[WhiteElo "2936"]
[BlackElo "3093"]
[TimeControl "180+1"]
[EndTime "11:39:19 PDT"]
[Termination "Game drawn by repetition"]

1. Nf3 {[%clk 0:03:00.9]} 1... c5 {[%clk 0:02:58.7]} 2. c4 {[%clk 0:02:59.7]}
2... Nf6 {[%clk 0:02:58.4]} 3. Nc3 {[%clk 0:02:59.5]} 3... Nc6 {[%clk
0:02:58.5]} 4. g3 {[%clk 0:02:57.7]} 4... d5 {[%clk 0:02:57.8]} 5. cxd5 {[%clk
0:02:57.6]} 5... Nxd5 {[%clk 0:02:58.7]} 6. Bg2 {[%clk 0:02:58.3]} 6... g6
{[%clk 0:02:59.3]} 7. d3 {[%clk 0:02:53.1]} 7... Bg7 {[%clk 0:02:59.1]} 8. Bd2
{[%clk 0:02:53.8]} 8... e6 {[%clk 0:02:45.3]} 9. Qc1 {[%clk 0:02:41.6]} 9... b6
{[%clk 0:02:37.6]} 10. Bh6 {[%clk 0:02:41.4]} 10... O-O {[%clk 0:02:18.9]} 11.
h4 {[%clk 0:02:38]} 11... Bb7 {[%clk 0:02:06.4]} 12. h5 {[%clk 0:02:25.6]} 12...
Nxc3 {[%clk 0:01:37.9]} 13. Bxg7 {[%clk 0:02:13.5]} 13... Kxg7 {[%clk
0:01:37.8]} 14. hxg6 {[%clk 0:02:09.6]} 14... hxg6 {[%clk 0:01:38.7]} 15. Qh6+
{[%clk 0:01:49.1]} 15... Kf6 {[%clk 0:01:38.7]} 16. Qg5+ {[%clk 0:01:39.4]}
16... Kg7 {[%clk 0:01:37.3]} 17. Qh6+ {[%clk 0:01:40.1]} 17... Kf6 {[%clk
0:01:37.5]} 18. Qh4+ {[%clk 0:01:38.2]} 18... Kg7 {[%clk 0:01:35.5]} 19. Qh6+
{[%clk 0:01:33.3]} 1/2-1/2

[Event "*** Titled Tuesday Blitz"]
[Site "Chess.com"]
[Date "2020.04.14"]
[Round "9"]
[White "Fighter008"]
[Black "MiroVlasenko"]
[Result "1-0"]
[WhiteElo "2552"]
[BlackElo "2653"]
[TimeControl "180+1"]
[EndTime "11:39:23 PDT"]
[Termination "Fighter008 won by resignation"]

1. e4 {[%clk 0:03:00.9]} 1... Nc6 {[%clk 0:02:59.7]} 2. Nc3 {[%clk 0:02:59.3]}
2... e6 {[%clk 0:02:59.3]} 3. d4 {[%clk 0:02:57.7]} 3... Bb4 {[%clk 0:02:59.1]}
4. Nf3 {[%clk 0:02:55.9]} 4... d5 {[%clk 0:02:58.9]} 5. e5 {[%clk 0:02:55.2]}
5... f6 {[%clk 0:02:58.7]} 6. Bb5 {[%clk 0:02:52.8]} 6... Bd7 {[%clk 0:02:57.8]}
7. O-O {[%clk 0:02:50.6]} 7... Qe7 {[%clk 0:02:54.6]} 8. a3 {[%clk 0:02:47.2]}
8... Ba5 {[%clk 0:02:53.3]} 9. b4 {[%clk 0:02:42.4]} 9... Bb6 {[%clk 0:02:53.1]}
10. Bxc6 {[%clk 0:02:36.5]} 10... Bxc6 {[%clk 0:02:51.6]} 11. exf6 {[%clk
0:02:32.2]} 11... gxf6 {[%clk 0:02:48.7]} 12. Bf4 {[%clk 0:02:31.9]} 12... O-O-O
{[%clk 0:02:40.1]} 13. Re1 {[%clk 0:02:28]} 13... Qf7 {[%clk 0:02:36.7]} 14. a4
{[%clk 0:02:25.3]} 14... a5 {[%clk 0:02:36.5]} 15. Nb5 {[%clk 0:02:12.9]} 15...
Ne7 {[%clk 0:02:27.1]} 16. Qd2 {[%clk 0:02:09.3]} 16... Bxb5 {[%clk 0:02:10.4]}
17. axb5 {[%clk 0:02:07.1]} 17... axb4 {[%clk 0:02:07.8]} 18. Qxb4 {[%clk
0:02:05.6]} 18... Ng6 {[%clk 0:02:07.1]} 19. Bg3 {[%clk 0:02:03.8]} 19... Rhg8
{[%clk 0:02:04.4]} 20. c4 {[%clk 0:02:01]} 20... dxc4 {[%clk 0:02:04.4]} 21.
Qxc4 {[%clk 0:02:00.9]} 21... h5 {[%clk 0:01:59.6]} 22. Rxe6 {[%clk 0:01:45]}
22... h4 {[%clk 0:01:55.6]} 23. Rd6 {[%clk 0:01:43.5]} 1-0

[Event "*** Titled Tuesday Blitz"]
[Site "Chess.com"]
[Date "2020.04.14"]
[Round "9"]
[White "dcann0n88"]
[Black "kagg1125"]
[Result "1-0"]
[WhiteElo "2323"]
[BlackElo "2501"]
[TimeControl "180+1"]
[EndTime "11:39:35 PDT"]
[Termination "dcann0n88 won by resignation"]

1. e4 {[%clk 0:03:00.9]} 1... e5 {[%clk 0:02:59.4]} 2. Nf3 {[%clk 0:03:00.8]}
2... Nc6 {[%clk 0:02:59.8]} 3. Bc4 {[%clk 0:03:01.4]} 3... Nf6 {[%clk
0:02:59.3]} 4. Ng5 {[%clk 0:03:00.3]} 4... d5 {[%clk 0:02:59.5]} 5. exd5 {[%clk
0:03:00.9]} 5... Na5 {[%clk 0:02:59.4]} 6. Bb5+ {[%clk 0:03:01.4]} 6... c6
{[%clk 0:02:59.6]} 7. dxc6 {[%clk 0:03:02.3]} 7... bxc6 {[%clk 0:03:00.5]} 8.
Be2 {[%clk 0:03:03]} 8... Bc5 {[%clk 0:02:52]} 9. d3 {[%clk 0:02:57.7]} 9... O-O
{[%clk 0:02:46.8]} 10. O-O {[%clk 0:02:54.1]} 10... Nd5 {[%clk 0:02:30.5]} 11.
Nc3 {[%clk 0:02:51.6]} 11... Be7 {[%clk 0:02:25.3]} 12. Nf3 {[%clk 0:02:49.5]}
12... Qd6 {[%clk 0:02:20.2]} 13. Ne4 {[%clk 0:02:44.9]} 13... Qg6 {[%clk
0:02:17.8]} 14. c4 {[%clk 0:02:44.3]} 14... Nf4 {[%clk 0:02:13.6]} 15. Bxf4
{[%clk 0:02:40.9]} 15... exf4 {[%clk 0:02:14.5]} 16. Qd2 {[%clk 0:02:28.4]}
16... f5 {[%clk 0:02:06.5]} 17. Qxa5 {[%clk 0:02:19.8]} 17... fxe4 {[%clk
0:02:05.9]} 18. dxe4 {[%clk 0:02:20.7]} 18... Qxe4 {[%clk 0:02:06.8]} 19. Rfe1
{[%clk 0:02:18.6]} 19... Bf6 {[%clk 0:01:56.9]} 20. Rad1 {[%clk 0:01:57.1]}
20... Bxb2 {[%clk 0:01:42.9]} 21. Bd3 {[%clk 0:01:56.6]} 1-0

[Event "*** Titled Tuesday Blitz"]
[Site "Chess.com"]
[Date "2020.04.14"]
[Round "9"]
[White "powermove"]
[Black "MarcoCorvi"]
[Result "0-1"]
[WhiteElo "1502"]
[BlackElo "2137"]
[TimeControl "180+1"]
[EndTime "11:39:36 PDT"]
[Termination "MarcoCorvi won on time"]

1. Nf3 {[%clk 0:03:00.9]} 1... f5 {[%clk 0:02:58.2]} 2. d4 {[%clk 0:02:54.5]}
2... d6 {[%clk 0:02:57.5]} 3. c4 {[%clk 0:02:53.8]} 3... Nf6 {[%clk 0:02:57.6]}
4. Nc3 {[%clk 0:02:52.3]} 4... g6 {[%clk 0:02:57.7]} 5. g3 {[%clk 0:02:51.2]}
5... Bg7 {[%clk 0:02:57.9]} 6. Bg2 {[%clk 0:02:51.1]} 6... O-O {[%clk
0:02:51.4]} 7. O-O {[%clk 0:02:49.9]} 7... Nc6 {[%clk 0:02:48.1]} 8. d5 {[%clk
0:02:47.8]} 8... Ne5 {[%clk 0:02:47.6]} 9. Nxe5 {[%clk 0:02:37.5]} 9... dxe5
{[%clk 0:02:48.5]} 10. b3 {[%clk 0:02:24.7]} 10... h6 {[%clk 0:02:31]} 0-1

[Event "*** Titled Tuesday Blitz"]
[Site "Chess.com"]
[Date "2020.04.14"]
[Round "9"]
[White "dmosesov"]
[Black "Bulldog167"]
[Result "1-0"]
[WhiteElo "2562"]
[BlackElo "2749"]
[TimeControl "180+1"]
[EndTime "11:39:46 PDT"]
[Termination "dmosesov won by resignation"]

1. d4 {[%clk 0:03:00.9]} 1... Nf6 {[%clk 0:03:00.2]} 2. c4 {[%clk 0:03:01.1]}
2... e6 {[%clk 0:03:00.7]} 3. Nf3 {[%clk 0:03:01]} 3... Bb4+ {[%clk 0:02:59.5]}
4. Bd2 {[%clk 0:03:00.9]} 4... a5 {[%clk 0:02:59]} 5. g3 {[%clk 0:03:01.1]} 5...
d5 {[%clk 0:02:58.8]} 6. Bg2 {[%clk 0:02:59.8]} 6... dxc4 {[%clk 0:02:59.3]} 7.
Qc2 {[%clk 0:02:53.1]} 7... b5 {[%clk 0:02:43.8]} 8. a4 {[%clk 0:02:51.4]} 8...
Bxd2+ {[%clk 0:02:41.7]} 9. Nbxd2 {[%clk 0:02:51.1]} 9... c6 {[%clk 0:02:42.2]}
10. O-O {[%clk 0:02:51.2]} 10... O-O {[%clk 0:02:41.8]} 11. b3 {[%clk
0:02:47.8]} 11... cxb3 {[%clk 0:02:41.1]} 12. Nxb3 {[%clk 0:02:48.7]} 12... b4
{[%clk 0:02:32.9]} 13. Rfd1 {[%clk 0:02:46.4]} 13... Nd5 {[%clk 0:02:31]} 14.
Ne5 {[%clk 0:02:42.2]} 14... Bb7 {[%clk 0:02:26.2]} 15. Nc5 {[%clk 0:02:41.6]}
15... Qc7 {[%clk 0:02:22.7]} 16. e3 {[%clk 0:02:25]} 16... f6 {[%clk 0:02:20]}
17. Nxe6 {[%clk 0:02:22.6]} 17... Qd6 {[%clk 0:02:15]} 18. Nxf8 {[%clk
0:02:22.8]} 18... fxe5 {[%clk 0:02:14.9]} 19. Nxh7 {[%clk 0:02:12]} 19... Nc3
{[%clk 0:02:04.6]} 20. dxe5 {[%clk 0:02:09.1]} 20... Qe7 {[%clk 0:02:01.3]} 21.
Rd6 {[%clk 0:01:55.3]} 21... Nd7 {[%clk 0:01:52.8]} 22. f4 {[%clk 0:01:54.9]}
22... Nxe5 {[%clk 0:01:48]} 23. fxe5 {[%clk 0:01:52.4]} 23... Qxe5 {[%clk
0:01:48.9]} 24. Nf6+ {[%clk 0:01:38.4]} 24... gxf6 {[%clk 0:01:43.6]} 25. Qg6+
{[%clk 0:01:38.6]} 25... Kh8 {[%clk 0:01:43.7]} 26. Rd7 {[%clk 0:01:37.3]} 26...
Ne2+ {[%clk 0:01:24.6]} 27. Kf2 {[%clk 0:01:37.1]} 1-0

[Event "*** Titled Tuesday Blitz"]
[Site "Chess.com"]
[Date "2020.04.14"]
[Round "9"]
[White "H3nriqueTV"]
[Black "cukin84"]
[Result "1-0"]
[WhiteElo "2215"]
[BlackElo "2094"]
[TimeControl "180+1"]
[EndTime "11:39:46 PDT"]
[Termination "H3nriqueTV won by checkmate"]

1. e3 {[%clk 0:02:58.3]} 1... f5 {[%clk 0:02:59.1]} 2. b3 {[%clk 0:02:59.2]}
2... Nf6 {[%clk 0:02:58.1]} 3. Bb2 {[%clk 0:03:00.1]} 3... g6 {[%clk 0:02:58.1]}
4. f4 {[%clk 0:03:00.6]} 4... Bg7 {[%clk 0:02:57.8]} 5. Nf3 {[%clk 0:03:01.3]}
5... O-O {[%clk 0:02:57.3]} 6. c4 {[%clk 0:02:57.7]} 6... d6 {[%clk 0:02:57.1]}
7. Nc3 {[%clk 0:02:56.6]} 7... Nc6 {[%clk 0:02:56.2]} 8. d4 {[%clk 0:02:56.8]}
8... Qe8 {[%clk 0:02:55.7]} 9. Qd2 {[%clk 0:02:56.2]} 9... Ne4 {[%clk
0:02:54.9]} 10. Nxe4 {[%clk 0:02:55.2]} 10... fxe4 {[%clk 0:02:54.7]} 11. Ng5
{[%clk 0:02:55.2]} 11... Bf5 {[%clk 0:02:50.3]} 12. Be2 {[%clk 0:02:55]} 12...
h6 {[%clk 0:02:48.4]} 13. Nh3 {[%clk 0:02:54.7]} 13... Qd7 {[%clk 0:02:45]} 14.
O-O-O {[%clk 0:02:50.9]} 14... Rad8 {[%clk 0:02:37.4]} 15. Rhg1 {[%clk
0:02:45.6]} 15... e5 {[%clk 0:02:32.4]} 16. g4 {[%clk 0:02:44.6]} 16... exd4
{[%clk 0:02:21.9]} 17. gxf5 {[%clk 0:02:44.8]} 17... dxe3 {[%clk 0:02:14.8]} 18.
Qxe3 {[%clk 0:02:42.2]} 18... Bxb2+ {[%clk 0:02:12.8]} 19. Kxb2 {[%clk
0:02:42.1]} 19... Qxf5 {[%clk 0:02:11.4]} 20. Bg4 {[%clk 0:02:34.8]} 20... Qf6+
{[%clk 0:02:09.1]} 21. Kb1 {[%clk 0:02:33.4]} 21... Rde8 {[%clk 0:02:06]} 22.
Bh5 {[%clk 0:02:28.5]} 22... g5 {[%clk 0:01:41.1]} 23. fxg5 {[%clk 0:02:17.4]}
23... Qe5 {[%clk 0:01:28.8]} 24. Bxe8 {[%clk 0:02:04.9]} 24... Rxe8 {[%clk
0:01:28.2]} 25. gxh6+ {[%clk 0:02:04.9]} 25... Kh8 {[%clk 0:01:28.5]} 26. Qg3
{[%clk 0:01:58.2]} 26... Qxg3 {[%clk 0:01:23.3]} 27. Rxg3 {[%clk 0:01:56.4]}
27... e3 {[%clk 0:01:23.6]} 28. Re1 {[%clk 0:01:56.2]} 28... e2 {[%clk
0:01:23.8]} 29. Nf4 {[%clk 0:01:55.9]} 29... Nd4 {[%clk 0:01:22.4]} 30. Rg7
{[%clk 0:01:48.9]} 30... Nf3 {[%clk 0:01:19.6]} 31. Ng6# {[%clk 0:01:48.7]} 1-0

[Event "*** Titled Tuesday Blitz"]
[Site "Chess.com"]
[Date "2020.04.14"]
[Round "9"]
[White "WastefulJustice"]
[Black "Semen_Khanin"]
[Result "0-1"]
[WhiteElo "2454"]
[BlackElo "2610"]
[TimeControl "180+1"]
[EndTime "11:39:50 PDT"]
[Termination "Semen_Khanin won by resignation"]

1. e4 {[%clk 0:03:00.9]} 1... c6 {[%clk 0:02:59.8]} 2. Nf3 {[%clk 0:02:59.3]}
2... d5 {[%clk 0:03:00.7]} 3. Nc3 {[%clk 0:02:59.4]} 3... Bg4 {[%clk 0:02:58.6]}
4. h3 {[%clk 0:02:58.9]} 4... Bxf3 {[%clk 0:02:58.5]} 5. Qxf3 {[%clk 0:02:59.8]}
5... e6 {[%clk 0:02:58.2]} 6. Be2 {[%clk 0:02:59.1]} 6... Nd7 {[%clk 0:02:55.5]}
7. O-O {[%clk 0:02:59.1]} 7... Bc5 {[%clk 0:02:55.1]} 8. Rd1 {[%clk 0:02:57.9]}
8... Bd4 {[%clk 0:02:42.3]} 9. exd5 {[%clk 0:02:48.9]} 9... cxd5 {[%clk
0:02:39]} 10. Nb5 {[%clk 0:02:47.3]} 10... Be5 {[%clk 0:02:38.3]} 11. d4 {[%clk
0:02:46.6]} 11... Bb8 {[%clk 0:02:38.4]} 12. Bf4 {[%clk 0:02:40.3]} 12... Ngf6
{[%clk 0:02:32.9]} 13. Nd6+ {[%clk 0:02:37.9]} 13... Ke7 {[%clk 0:02:23.4]} 14.
Qg3 {[%clk 0:02:29.3]} 14... Qb6 {[%clk 0:02:14.3]} 15. Qxg7 {[%clk 0:02:18.1]}
15... Bxd6 {[%clk 0:02:13.9]} 16. Bg5 {[%clk 0:02:12.1]} 16... Rag8 {[%clk
0:02:11.6]} 17. Qh6 {[%clk 0:02:11.9]} 17... Rg6 {[%clk 0:02:10.6]} 18. Qh4
{[%clk 0:02:11.8]} 18... Rhg8 {[%clk 0:02:10.8]} 19. f4 {[%clk 0:01:59.4]} 19...
h6 {[%clk 0:02:10.1]} 20. Bxf6+ {[%clk 0:01:59.1]} 20... Nxf6 {[%clk 0:02:09.4]}
21. Bf3 {[%clk 0:01:59.7]} 21... Qc7 {[%clk 0:01:59.8]} 22. Re1 {[%clk
0:01:20.7]} 22... Bxf4 {[%clk 0:01:56.5]} 23. Bxd5 {[%clk 0:01:18.8]} 23... Bg3
{[%clk 0:01:55.8]} 0-1

[Event "*** Titled Tuesday Blitz"]
[Site "Chess.com"]
[Date "2020.04.14"]
[Round "9"]
[White "Duong57"]
[Black "jaskol95"]
[Result "1-0"]
[WhiteElo "2231"]
[BlackElo "2376"]
[TimeControl "180+1"]
[EndTime "11:39:50 PDT"]
[Termination "Duong57 won by resignation"]

1. d4 {[%clk 0:03:00.9]} 1... Nf6 {[%clk 0:02:56.1]} 2. c4 {[%clk 0:03:01.1]}
2... g6 {[%clk 0:02:56]} 3. Nc3 {[%clk 0:03:01.2]} 3... d5 {[%clk 0:02:56.6]} 4.
Bg5 {[%clk 0:03:01.1]} 4... Ne4 {[%clk 0:02:56.4]} 5. Bh4 {[%clk 0:03:01]} 5...
c6 {[%clk 0:02:52.4]} 6. e3 {[%clk 0:02:57.4]} 6... Bg7 {[%clk 0:02:52.2]} 7.
Bd3 {[%clk 0:02:48.9]} 7... Nxc3 {[%clk 0:02:48.2]} 8. bxc3 {[%clk 0:02:48.4]}
8... dxc4 {[%clk 0:02:49.1]} 9. Bxc4 {[%clk 0:02:47.9]} 9... b5 {[%clk
0:02:48.7]} 10. Bb3 {[%clk 0:02:44.7]} 10... c5 {[%clk 0:02:46.7]} 11. Bxf7+
{[%clk 0:02:35.4]} 11... Kxf7 {[%clk 0:02:42.3]} 12. Qf3+ {[%clk 0:02:35.8]}
12... Bf5 {[%clk 0:02:42.7]} 13. Qxa8 {[%clk 0:02:35.7]} 13... cxd4 {[%clk
0:02:43.6]} 14. Nf3 {[%clk 0:02:22.7]} 14... dxc3 {[%clk 0:02:41.6]} 15. Rd1
{[%clk 0:02:12.1]} 15... c2 {[%clk 0:02:12.3]} 16. Ng5+ {[%clk 0:02:10.5]} 16...
Kf6 {[%clk 0:02:08.5]} 17. Ne4+ {[%clk 0:01:41.8]} 17... Kf7 {[%clk 0:02:02]}
18. Rxd8 {[%clk 0:01:36.6]} 18... c1=Q+ {[%clk 0:01:58.9]} 19. Rd1 {[%clk
0:01:34.4]} 19... Qc2 {[%clk 0:01:33.6]} 20. Qd5+ {[%clk 0:01:32.9]} 20... Ke8
{[%clk 0:01:22.4]} 21. Qd8+ {[%clk 0:01:31.5]} 21... Kf7 {[%clk 0:01:22.7]} 22.
Qxe7+ {[%clk 0:01:27.2]} 22... Kg8 {[%clk 0:01:23]} 23. Rd8+ {[%clk 0:01:27.1]}
1-0

[Event "*** Titled Tuesday Blitz"]
[Site "Chess.com"]
[Date "2020.04.14"]
[Round "9"]
[White "AlexTriapishko"]
[Black "SanQui14"]
[Result "1-0"]
[WhiteElo "2788"]
[BlackElo "2327"]
[TimeControl "180+1"]
[EndTime "11:39:54 PDT"]
[Termination "AlexTriapishko won by resignation"]

1. d4 {[%clk 0:02:37.6]} 1... Nf6 {[%clk 0:02:59]} 2. c4 {[%clk 0:02:38]} 2...
e6 {[%clk 0:02:59.6]} 3. Nf3 {[%clk 0:02:37.4]} 3... Bb4+ {[%clk 0:03:00.2]} 4.
Bd2 {[%clk 0:02:35.3]} 4... Be7 {[%clk 0:03:00.8]} 5. g3 {[%clk 0:02:35.2]} 5...
O-O {[%clk 0:03:00.8]} 6. Bg2 {[%clk 0:02:35.6]} 6... d5 {[%clk 0:03:01.7]} 7.
O-O {[%clk 0:02:36.1]} 7... dxc4 {[%clk 0:03:02.1]} 8. Qc2 {[%clk 0:02:34.8]}
8... a6 {[%clk 0:03:02.4]} 9. Qxc4 {[%clk 0:02:32.2]} 9... b5 {[%clk 0:03:01]}
10. Qc2 {[%clk 0:02:30.8]} 10... Bb7 {[%clk 0:03:01.4]} 11. Rc1 {[%clk
0:02:12.6]} 11... Bd6 {[%clk 0:03:00.2]} 12. e3 {[%clk 0:01:54.5]} 12... Nbd7
{[%clk 0:02:59.9]} 13. Ba5 {[%clk 0:01:54.1]} 13... Rc8 {[%clk 0:02:55.3]} 14.
Nbd2 {[%clk 0:01:49.8]} 14... Qe7 {[%clk 0:02:55]} 15. Nb3 {[%clk 0:01:28.3]}
15... c5 {[%clk 0:02:51.3]} 16. dxc5 {[%clk 0:01:28.2]} 16... Nxc5 {[%clk
0:02:51.3]} 17. Nxc5 {[%clk 0:01:25.5]} 17... Rxc5 {[%clk 0:02:50.9]} 18. Qd1
{[%clk 0:01:23.4]} 18... Rfc8 {[%clk 0:02:50.5]} 19. Rxc5 {[%clk 0:01:23.1]}
19... Rxc5 {[%clk 0:02:49.9]} 20. Rc1 {[%clk 0:01:22.9]} 20... h6 {[%clk
0:02:41.6]} 21. Rxc5 {[%clk 0:01:18.4]} 21... Bxc5 {[%clk 0:02:42.5]} 22. a3
{[%clk 0:01:13.7]} 22... Qd7 {[%clk 0:02:41.4]} 23. Qxd7 {[%clk 0:01:04.8]}
23... Nxd7 {[%clk 0:02:42.3]} 24. Ne5 {[%clk 0:01:02.1]} 24... Nxe5 {[%clk
0:02:26.7]} 25. Bxb7 {[%clk 0:01:00.9]} 25... Nd3 {[%clk 0:02:26.8]} 26. b4
{[%clk 0:00:57.8]} 26... Be7 {[%clk 0:02:04.7]} 27. Bxa6 {[%clk 0:00:57.2]}
27... Ne5 {[%clk 0:02:05.6]} 28. Bxb5 {[%clk 0:00:57.1]} 28... Bf6 {[%clk
0:02:04.8]} 29. Bc7 {[%clk 0:00:55.7]} 1-0

[Event "*** Titled Tuesday Blitz"]
[Site "Chess.com"]
[Date "2020.04.14"]
[Round "9"]
[White "StoreySniper"]
[Black "Casablanca"]
[Result "1-0"]
[WhiteElo "2512"]
[BlackElo "2355"]
[TimeControl "180+1"]
[EndTime "11:39:55 PDT"]
[Termination "StoreySniper won by resignation"]

1. g3 {[%clk 0:03:00.1]} 1... d5 {[%clk 0:02:54.2]} 2. Bg2 {[%clk 0:02:59.9]}
2... Nf6 {[%clk 0:02:52.5]} 3. c4 {[%clk 0:03:00.1]} 3... dxc4 {[%clk 0:02:38]}
4. Qa4+ {[%clk 0:02:58.8]} 4... Bd7 {[%clk 0:02:37.5]} 5. Qxc4 {[%clk
0:02:58.5]} 5... Bc6 {[%clk 0:02:38]} 6. Nf3 {[%clk 0:02:58.7]} 6... Nbd7 {[%clk
0:02:37.2]} 7. Nc3 {[%clk 0:02:58.8]} 7... e6 {[%clk 0:02:34]} 8. d4 {[%clk
0:02:57]} 8... Be7 {[%clk 0:02:32.5]} 9. O-O {[%clk 0:02:55.3]} 9... O-O {[%clk
0:02:28.5]} 10. Bg5 {[%clk 0:02:53.1]} 10... h6 {[%clk 0:02:28.4]} 11. Bxf6
{[%clk 0:02:52.7]} 11... Nxf6 {[%clk 0:02:26.7]} 12. Rac1 {[%clk 0:02:50.5]}
12... Rc8 {[%clk 0:02:18]} 13. Qd3 {[%clk 0:02:35.5]} 13... Nd5 {[%clk
0:02:09.9]} 14. Nxd5 {[%clk 0:02:32.9]} 14... Bxd5 {[%clk 0:01:54]} 15. e4
{[%clk 0:02:32.4]} 15... Bc6 {[%clk 0:01:53.7]} 16. Ne5 {[%clk 0:02:29.3]} 16...
Be8 {[%clk 0:01:54.1]} 17. Rfd1 {[%clk 0:02:14.5]} 17... a6 {[%clk 0:01:47.5]}
18. Qb3 {[%clk 0:02:08.1]} 18... b6 {[%clk 0:01:29.3]} 19. d5 {[%clk 0:01:58.5]}
19... exd5 {[%clk 0:01:27.1]} 20. Rxd5 {[%clk 0:01:46.9]} 20... Bd6 {[%clk
0:01:24.8]} 21. Ng6 {[%clk 0:01:40.8]} 21... Qg5 {[%clk 0:01:05.8]} 22. Rxg5
{[%clk 0:01:35.7]} 22... hxg5 {[%clk 0:01:05.6]} 23. Nxf8 {[%clk 0:01:34.5]} 1-0

[Event "*** Titled Tuesday Blitz"]
[Site "Chess.com"]
[Date "2020.04.14"]
[Round "9"]
[White "zacachess"]
[Black "Stormeman100100"]
[Result "0-1"]
[WhiteElo "2280"]
[BlackElo "2448"]
[TimeControl "180+1"]
[EndTime "11:40:02 PDT"]
[Termination "Stormeman100100 won by checkmate"]

1. e4 {[%clk 0:03:00.9]} 1... c6 {[%clk 0:02:59.5]} 2. d4 {[%clk 0:02:55.9]}
2... d5 {[%clk 0:02:59.7]} 3. Nc3 {[%clk 0:02:56.2]} 3... dxe4 {[%clk
0:02:59.6]} 4. Nxe4 {[%clk 0:02:56.4]} 4... Nf6 {[%clk 0:03:00.1]} 5. Nxf6+
{[%clk 0:02:52.8]} 5... exf6 {[%clk 0:03:01]} 6. Nf3 {[%clk 0:02:52.7]} 6... Bd6
{[%clk 0:02:52.5]} 7. Bd3 {[%clk 0:02:50.7]} 7... Bg4 {[%clk 0:02:51.6]} 8. O-O
{[%clk 0:02:47]} 8... O-O {[%clk 0:02:51.2]} 9. h3 {[%clk 0:02:44]} 9... Bh5
{[%clk 0:02:50.6]} 10. c3 {[%clk 0:02:44.1]} 10... Nd7 {[%clk 0:02:49.2]} 11. b4
{[%clk 0:02:41.2]} 11... Nb6 {[%clk 0:02:39.7]} 12. Be3 {[%clk 0:02:11.9]} 12...
Nd5 {[%clk 0:02:37.8]} 13. Qd2 {[%clk 0:02:11.7]} 13... Bxf3 {[%clk 0:02:35.3]}
14. gxf3 {[%clk 0:02:09.5]} 14... Qd7 {[%clk 0:02:34.9]} 15. Kg2 {[%clk
0:02:01.8]} 15... f5 {[%clk 0:02:31.9]} 16. Qc2 {[%clk 0:01:50]} 16... g6 {[%clk
0:02:25.8]} 17. Bh6 {[%clk 0:01:46.8]} 17... Qe7 {[%clk 0:02:19.8]} 18. Bxf8
{[%clk 0:01:40.9]} 18... Rxf8 {[%clk 0:02:20.7]} 19. Bxf5 {[%clk 0:01:21.7]}
19... gxf5 {[%clk 0:02:11.2]} 20. Qxf5 {[%clk 0:01:22.6]} 20... Kh8 {[%clk
0:02:10.4]} 21. Rae1 {[%clk 0:01:18.7]} 21... Qh4 {[%clk 0:02:07.7]} 22. Re4
{[%clk 0:01:10.5]} 22... Nf4+ {[%clk 0:02:03.2]} 23. Kh1 {[%clk 0:01:04.6]}
23... Rg8 {[%clk 0:01:56.3]} 24. Rg1 {[%clk 0:01:00.3]} 24... Rxg1+ {[%clk
0:01:55.5]} 25. Kxg1 {[%clk 0:01:01.2]} 25... Nxh3+ {[%clk 0:01:54.2]} 26. Kg2
{[%clk 0:00:55.3]} 26... Qxf2+ {[%clk 0:01:53.2]} 27. Kxh3 {[%clk 0:00:53.6]}
27... Qg3# {[%clk 0:01:52.3]} 0-1

[Event "*** Titled Tuesday Blitz"]
[Site "Chess.com"]
[Date "2020.04.14"]
[Round "9"]
[White "mirochka"]
[Black "MasterKroket"]
[Result "0-1"]
[WhiteElo "2238"]
[BlackElo "2434"]
[TimeControl "180+1"]
[EndTime "11:40:07 PDT"]
[Termination "MasterKroket won by resignation"]

1. e4 {[%clk 0:03:00.9]} 1... c5 {[%clk 0:02:59.3]} 2. b4 {[%clk 0:02:59.8]}
2... cxb4 {[%clk 0:02:58.8]} 3. a3 {[%clk 0:02:59.1]} 3... d5 {[%clk 0:02:59]}
4. exd5 {[%clk 0:02:58.7]} 4... Qxd5 {[%clk 0:02:59.6]} 5. Nf3 {[%clk 0:02:59]}
5... e5 {[%clk 0:02:59.9]} 6. Bb2 {[%clk 0:02:58.1]} 6... Nc6 {[%clk 0:02:58.3]}
7. c4 {[%clk 0:02:58]} 7... bxc3 {[%clk 0:02:56.9]} 8. Nxc3 {[%clk 0:02:57.1]}
8... Qd8 {[%clk 0:02:57]} 9. Bb5 {[%clk 0:02:56.1]} 9... Bd6 {[%clk 0:02:54.8]}
10. Ne4 {[%clk 0:02:52.9]} 10... Nf6 {[%clk 0:02:52.7]} 11. Nxd6+ {[%clk
0:02:48.6]} 11... Qxd6 {[%clk 0:02:52.7]} 12. Bxe5 {[%clk 0:02:46.2]} 12... Qc5
{[%clk 0:02:45.3]} 13. Bxf6 {[%clk 0:02:39.5]} 13... Qxb5 {[%clk 0:02:22.6]} 14.
Bxg7 {[%clk 0:02:38.4]} 14... Rg8 {[%clk 0:02:22.7]} 15. Bc3 {[%clk 0:02:34.8]}
15... Rxg2 {[%clk 0:02:17.4]} 16. Qe2+ {[%clk 0:01:54.7]} 16... Qxe2+ {[%clk
0:02:15.6]} 17. Kxe2 {[%clk 0:01:55.4]} 17... Be6 {[%clk 0:02:06.6]} 18. Rab1
{[%clk 0:01:45.8]} 18... O-O-O {[%clk 0:02:06.2]} 19. Rhg1 {[%clk 0:01:42.2]}
19... Bc4+ {[%clk 0:02:06]} 20. Ke3 {[%clk 0:01:35.4]} 20... Rd3+ {[%clk
0:01:57.4]} 21. Kf4 {[%clk 0:01:34.9]} 21... Rxf2 {[%clk 0:01:55.6]} 22. Rg8+
{[%clk 0:01:14.1]} 22... Kc7 {[%clk 0:01:54.1]} 23. Rg3 {[%clk 0:01:07.6]} 23...
Bd5 {[%clk 0:01:52.8]} 24. Be5+ {[%clk 0:00:46.1]} 24... Nxe5 {[%clk 0:01:52.8]}
25. Kxe5 {[%clk 0:00:45.3]} 25... Rfxf3 {[%clk 0:01:51.4]} 0-1

[Event "*** Titled Tuesday Blitz"]
[Site "Chess.com"]
[Date "2020.04.14"]
[Round "9"]
[White "NormWeinstein"]
[Black "1lec"]
[Result "1-0"]
[WhiteElo "2359"]
[BlackElo "2153"]
[TimeControl "180+1"]
[EndTime "11:40:10 PDT"]
[Termination "NormWeinstein won by resignation"]

1. e4 {[%clk 0:02:59]} 1... c5 {[%clk 0:03:00]} 2. Nf3 {[%clk 0:02:56.9]} 2...
d6 {[%clk 0:03:00.4]} 3. Nc3 {[%clk 0:02:56.7]} 3... Nf6 {[%clk 0:03:00.2]} 4.
e5 {[%clk 0:02:56.7]} 4... dxe5 {[%clk 0:02:44.2]} 5. Nxe5 {[%clk 0:02:56.6]}
5... a6 {[%clk 0:02:44]} 6. g3 {[%clk 0:02:56]} 6... Nbd7 {[%clk 0:02:37.4]} 7.
d4 {[%clk 0:02:54]} 7... cxd4 {[%clk 0:02:19.7]} 8. Qxd4 {[%clk 0:02:52.6]} 8...
Nxe5 {[%clk 0:02:18.4]} 9. Qxe5 {[%clk 0:02:52]} 9... e6 {[%clk 0:02:15.9]} 10.
Bf4 {[%clk 0:02:49.4]} 10... Be7 {[%clk 0:01:59.9]} 11. Bg2 {[%clk 0:02:48.8]}
11... O-O {[%clk 0:01:57.4]} 12. O-O {[%clk 0:02:47.7]} 12... Qb6 {[%clk
0:01:45.9]} 13. Na4 {[%clk 0:02:37.4]} 13... Qb4 {[%clk 0:01:40.8]} 14. b3
{[%clk 0:02:34.4]} 14... Nd5 {[%clk 0:00:56.7]} 15. Bxd5 {[%clk 0:02:23.3]}
15... Bf6 {[%clk 0:00:56.4]} 16. Qe4 {[%clk 0:02:10.2]} 16... Qe7 {[%clk
0:00:13.6]} 17. Rae1 {[%clk 0:01:53.1]} 1-0